{"text_format":"2","workbook":"xlsx","n_sheets":4,"sheets":["In te geven informatie","Definiëring concepten","Feuille de calculs","Resultatenfiche"],"not_rendered":{"charts":1,"images":1,"macros":0,"external_links":0,"defined_names":0,"comments":0,"pivot_tables":0},"unopened":[],"bounds":{"document_bytes":16777216,"sheet_cells":100000,"run_cost":"one","rows_first":2000,"rows_last":500,"rows_between":2000,"halvings":0,"cell_chars":16384,"cell_head_chars":4096},"cells_cut":0,"cells_raw":0,"read":"whole","date_system":"1900"}

{"sheet":"In te geven informatie","index":0,"n_rows":19,"n_cols":4,"rows_kept":19,"cut":false,"hidden":false,"merged":[[8,2,8,3],[10,1,13,4],[0,0,0,5],[3,1,3,4],[2,1,2,4],[1,1,1,4],[5,1,5,4],[6,1,6,4],[4,1,4,4]]}
["Simulator UNISOC - Effect van de tax shift voor een bepaald loonniveau - Bedienden"]
[null,"Het is mogelijk dat dit instrument aangepast zal worden naargelang we eventueel bijkomende informatie ontvangen. De versie die u nu raadpleegt werd gepubliceerd op  25 februari 2016"]
[null,"De doelstelling van dit instrument is dat u de impact van de tax shift kan berekenen voor een bepaald loonniveau. "]
[null,"Dit instrument neemt enkel de impact van de tax shift in rekening op de basisbijdragevoet (inclusief loonmatigingsbijdrage), de structurele lastenverlaging en het forfait sociale Maribel. Concreet zal de \"Resultatenfiche\" u een overzicht geven van de basiswerkgeversbijdrage vermeerderd met de loonmatigingsbijdrage. Deze worden dan verminderd door de structurele lastenverlaging die in het kader van de tax shift versterkt werd, rekening houdend met de evolutie van de bijdragen sociale Maribel. Dit resultaat is beschikbaar voor alle categoriën van de structurele lastenverlaging. "]
[null,"De werkgeversbijdragen die opgeteld moeten worden bij de basisbijdrage en de loonmatiging (vast, variabel en 0,40) werden niet in rekening gebracht.  Zo werden onder meer volgende bijdragen niet hernomen in deze simulator: bijdragen FSO, de bijzondere bijdrage arbeidsongevallen en de bijdrage voor het Asbestfonds."]
[null,"Merk op dat deze door de tax shift niet gewijzigd werden, en dus nog steeds bijgeteld moeten worden bij de percentages die in deze simulator worden weergegeven."]
[null,"Deze simulator neemt ook de doelgroepverminderingen niet in rekening. Deze zijn sinds de zesde staatshervorming een materie geworden waarvoor hoofdzakelijk de Regio's bevoegd zijn."]
[]
[null,"Informatie die noodzakelijk is voor het invullen van de simulator:"]
[]
[null,"Belangrijke verduidelijking :\n\nDe parameters waarop deze simulator zich baseert worden gedefinieerd in de administratieve instructies van de RSZ. Enkele definities worden in het tweede tabblad van dit document herhaald (u kunt deze gemakkelijk terug vinden door net naast elke notie op “definities” te klikken). Om de logica en de principes achter de structurele lastenverlaging beter te begrijpen, kunt u tevens ons dossier over de lastenverlagingen op onze website consulteren.\n\nIndien u uw simulatie zou willen vereenvoudigen om de theoretische impact in te schatten op een voltijdse werknemer voor een bepaald loon, dan kunt u voor de prestatiebreuk µ “1” als waarde behouden, en kunt u een theoretisch loon ingeven dat dan hetzelfde is voor het maandloon W en het refertemaandloon S.\n"]
[]
[]
[]
[]
[]
[null,"De prestatiebreuk per trimester: µ (glob), afgerond op twee decimalen",1,"Definitie"]
[null,"Maandloon W",2000,"Definitie"]
[null,"Refertemaandloon S",2000,"Definitie"]

{"sheet":"Definiëring concepten","index":1,"n_rows":18,"n_cols":2,"rows_kept":18,"cut":false,"hidden":false,"merged":[]}
[]
[]
[null,"Definiëring van een aantal concepten"]
[]
[]
[null,"De prestatiebreuk: µ (glob)"]
[null,"Aan de hand van de prestatiebreuk wordt het bedrag van de RSZ-vermindering (structurele en/of doelgroep) geproportioneerd in functie van het effectief aantal gewerkte arbeidsdagen (of arbeidsuren) en de daarmee gelijkgestelde dagen (of uren). \nDe prestatiebreuk μ wordt bepaald per tewerkstellingslijn waarvoor de vermindering wordt berekend. Er wordt een onderscheid gemaakt naargelang de tewerkstelling wordt aangegeven in dagen en/of in uren.\nOm de prestatiebreuk te berekenen worden het aantal (effectieve en gelijkgestelde) arbeidsdagen of -uren op kwartaalbasis gedeeld door het product dat men bekomt door het aantal arbeidsdagen per week van het arbeidsstelsels, of in voorkomend geval, het gemiddeld aantal uren per week van een maatpersoon te vermenigvuldigen met 13 (het aantal weken in een kwartaal).\n\nVoor meer gedetailleerde informatie hernemen we hieronder informatie die beschikbaar is in de administratieve instructies van de RSZ:\nHierbij moeten we een onderscheid maken tussen tewerkstelling die aangegeven wordt in dagen en tewerkstelling die aangegeven wordt in uren:\n- aangegeven in dagen: µ = X / (13 x D) \nwaarbij X het aantal arbeidsdagen en dagen tijdelijke werkloosheid ingevolge slecht weer (prestatiecodes 1, 2, 3, 4, 5, 12, 20 en 72) weergeeft; de dagen gedekt door een verbrekingsvergoeding komen niet in aanmerking voor de berekening van X. \nD geeft het aantal dagen per week van het arbeidsstelsel weer;\n\n- aangegeven in dagen en uren: µ = Z / (13 x U) \nwaarbij Z het aantal arbeidsuren en uren die overeenstemmen met de dagen tijdelijke werkloosheid ingevolge slecht weer (prestatiecodes 1, 2, 3, 4, 5, 12, 20 en 72) weergeeft; de uren die overeenkomen met de dagen gedekt door een verbrekingsvergoeding komen niet in aanmerking voor de berekening van Z. \nU geeft het gemiddeld aantal uren per week van de maatpersoon weer.\n\nµ wordt afgerond tot op het tweede cijfer na de komma waarbij 0,005 naar boven wordt afgerond.\nAan de hand van de prestatiebreuk µ worden de verminderingsbedragen geproportioneerd. De som van alle µ’s geeft de totale prestatie van de werknemer µ (glob). Aan de hand van µ (glob) wordt nagegaan of de werknemer tijdens het kwartaal voldoende prestaties heeft om het recht te openen op een lastenverlaging."]
[null,"Terug naar het tabblad waar deze info moet worden ingevuld"]
[]
[]
[null,"De loonmassa W"]
[null,"Het loon dat in aanmerking genomen moet worden, is de loonmassa die per tewerkstellingslijn driemaandelijks wordt aangegeven aan 100% (dit is het brutomaandloon, zonder aftrek van de socialezekerheidsbijdragen verschuldigd door de werknemer).\nOm het gebruik van deze simulator te vergemakkelijken, is het loon W dat u moet ingeven een bedrag op maandbasis, deze wordt vanzelf door dit instrument omgezet in een bedrag op trimesterbasis. Op basis van dit trimesterloon worden dan de resultaten die u in de resultatenfiche terug vindt berekend.\nBepaalde vergoedingen worden niet in aanmerking genomen voor de berekening van het loon W:\n- de vergoedingen die worden betaald ingevolge een verbreking van de arbeidsovereenkomst en in zoverre deze worden uitgedrukt in arbeidsduur,\n- de eindejaarspremies die betaald worden door derden,\n- de vergoedingen voor uren die geen arbeidsuren zijn,\n- de vergoedingen enkel vertrekvakantiegeld uitbetaald door een werkgever aan zijn (ex-) werknemer.\n\n\nVoor meer gedetailleerde gegevens, hernemen we hieronder informatie die beschibaar is in de administratieve instructies van de RSZ:\n\nW is de loonmassa die per tewerkstellingslijn driemaandelijks wordt aangegeven (tegen 100 %) met uitzondering van de vergoedingen die worden betaald ingevolge een verbreking van de arbeidsovereenkomst en in zoverre deze worden uitgedrukt in arbeidsduur, de eindejaarspremies die betaald worden door derden, de vergoedingen voor uren die geen arbeidsuren zijn en de vergoedingen enkel vertrekvakantiegeld uitbetaald door een werkgever aan zijn (ex-)werknemer.\nHet gaat m.a.w. om de looncodes 1, 2, 4, 5, 8 en 12. De vermindering kan dus niet worden toegepast op een tewerkstellingslijn met looncode 3 of 9 (verbrekingsvergoeding) en op de bedragen aangegeven onder looncode 7 en 11.\nVoor werknemers voor wie een eindejaarspremie betaald wordt door een betalende derde (bv. een fonds voor bestaanszekerheid), wordt het kwartaalloon (W) voor het 4de kwartaal verhoogd met 25%. In afwijking daarvan bedraagt de verhoging slechts 15% voor de erkende uitzendkantoren en dit tijdens het 1ste kwartaal. Na deze verhoging wordt W afgerond tot op de eurocent waarbij 0,005 EUR wordt afgerond naar 0,01 EUR."]
[null,"Terug naar het tabblad waar deze info moet worden ingevuld"]
[]
[null,"Het refertekwartaalloon S"]
[null,"Met het refertekwartaalloon bedoelt men het brutokwartaalloon in geval van volledige arbeidsprestaties. Voor werknemers die dat kwartaal niet voltijds hebben gewerkt, wordt hun loon omgerekend alsof ze dat kwartaal wel voltijds zouden hebben gewerkt. We merken op dat deze correctie naar een voltijdse tewerkstelling niet gebeurt voor de berekening van de hogelonengrens.\n\nOm het gebruik van deze simulator te vergemakkelijken, is het loon W dat u moet ingeven een bedrag op maandbasis, deze wordt vanzelf door dit instrument omgezet in een bedrag op trimesterbasis. Op basis van dit trimesterloon worden dan de resultaten die u in de resultatenfiche terug vindt berekend.\n\nDe omrekening naar een (fictief) voltijds loon gebeurt omdat men anders te makkelijk onder deze lageloongrens zou kunnen vallen en dus van de vermindering zou kunnen genieten. Iemand die bijvoorbeeld halftijds tewerkgesteld wordt (en dus naar verhouding betaald wordt), zou van deze extra vermindering kunnen genieten voor een loon dat niet noodzakelijk \"laag\" is.\n\nDe berekening van het refertekwartaalloon gebeurt als volgt:\n\n1. Omzetting van het reële loon op kwartaalbasis naar een voltijds loon op weekbasis:\n- het loon zoals driemaandelijks wordt aangegeven wordt gedeeld door het aantal effectieve en gelijkgestelde arbeidsdagen of arbeidsuren;\n- vervolgens vermenigvuldigd met het aantal dagen, in voorkomend geval het gemiddeld aantal uren, van een maatpersoneel per week.\n\n2. Omzetting van het voltijds loon op weekbasis naar een voltijds loon op kwartaalbasis: het voltijds loon op weekbasis wordt vermenigvuldigd met 13 (13 weken vormen immers één kwartaal).\n\nOpgelet! Een aantal vergoedingen moet niet meegenomen worden voor de berekening van het refertekwartaalloon S.\n\n"]
[null,"Voor meer gedetailleerde gegevens, hernemen we hieronder informatie die beschibaar is in de administratieve instructies van de RSZ:\n\nHet refertekwartaalloon S, of de omzetting van het reële loon naar een referteloon, wordt als volgt berekend (per tewerkstellingslijn):\n\n- voor de tewerkstelling uitsluitend aangegeven in dagen: S = W x (13 x D / J) \nJ is gelijk aan X zonder de wettelijke vakantiedagen voor arbeiders, de niet door de werkgever betaalde vakantiedagen toegekend ingevolge algemeen verbindend verklaarde CAO, de dagen inhaalrust bouwbedrijf en de dagen tijdelijke werkloosheid ingevolge slecht weer; het gaat m.a.w. om de prestatiecodes 1, 3, 4, 5 en 20; \nD geeft het aantal dagen per week van het arbeidsstelsel weer;\n\n- voor de tewerkstelling aangegeven in uren en dagen wordt dit: S = W x (13 x U / H) \nH is gelijk aan Z zonder de uren die overeenstemmen met de wettelijke vakantiedagen voor arbeiders, de uren die overeenstemmen met de niet door de werkgever betaalde vakantiedagen toegekend ingevolge algemeen verbindend verklaarde CAO, met de dagen inhaalrust bouwbedrijf en de uren die overeenstemmen met de dagen tijdelijke werkloosheid ingevolge slecht weer; het gaat m.a.w. om de prestatiecodes 1, 3, 4, 5 en 20; \nU geeft het gemiddeld aantal uren per week van de maatpersoon weer.\n\n(13 x D / J) en (13 x U / H) worden afgerond tot op het tweede cijfer na de komma waarbij 0,005 naar boven wordt afgerond; S wordt afgerond tot op de eurocent waarbij 0,005 EUR wordt afgerond naar 0,01 EUR.\n\nVoor werknemers tewerkgesteld bij een beperkte groep van werkgevers die vóór 1 oktober 2001 de arbeidsduur verminderden of de vierdagenweek invoerden en van wie aan de werknemers een tussenkomst wordt toegekend om het loonverlies gedeeltelijk te compenseren (looncode 5), wordt S forfaitair verminderd met 241,70 EUR per kwartaal. Het handelt hier om de werkgevers die in aanmerking kwamen voor een doelgroepvermindering op basis van artikel 367, 369 of 370 van de Programmawet van 24 december 2002 (de oude verminderingscodes 1331, 1333 en 1341 zijn niet meer toepasbaar)."]
[null,"Terug naar het tabblad waar deze info moet worden ingevuld"]

{"sheet":"Feuille de calculs","index":2,"n_rows":19,"n_cols":49,"rows_kept":19,"cut":false,"hidden":true,"merged":[[7,2,7,8],[7,18,7,24],[7,26,7,32],[7,34,7,40],[7,42,7,48],[7,10,7,16]]}
[]
[null,null,"Facteur fixe de multiplication: ßs",{"$f":"IF(AND(('In te geven informatie'!C17<0.55),('In te geven informatie'!C17>=0.275)),1.18,IF(AND(('In te geven informatie'!C17>=0.55),('In te geven informatie'!C17<0.8)),1.18+(('In te geven informatie'!C17-0.55)*0.28),IF('In te geven informatie'!C17>=0.8,1/'In te geven informatie'!C17, 0)))","v":1},"Définition",null,"CAT 3 ßs",{"$f":"IF(('In te geven informatie'!C17<0.55),1.18,IF(AND(('In te geven informatie'!C17>=0.55),('In te geven informatie'!C17<0.8)),1.18+(('In te geven informatie'!C17-0.55)*0.28),IF('In te geven informatie'!C17>=0.8,1/'In te geven informatie'!C17,0)))","v":1},"Définition"]
[null,null,"Régime de travail en % pour forfait maribel",{"$f":"'In te geven informatie'!C17*100","v":100},"Définition"]
[null,null,"Salaire trimestriel de référence S",{"$f":"'In te geven informatie'!C19*3","v":6000},"Définition"]
[]
[]
[]
[null,null,"Catégorie 1",{"$nulls":7},"Catégorie 1 - Sans Maribel",{"$nulls":7},"Catégorie 2 - Forfait général Maribel Social",{"$nulls":7},"Catégorie 2 - Forfait particulier Maribel Social",{"$nulls":7},"Catégorie 3 - Travailleurs valides",{"$nulls":7},"Catégorie 3 - Travailleurs moins-valides"]
[null,null,"Situation en 2015","1er janvier 2016","1er avril 2016","1er janvier 2017","1er janvier 2018","1er janvier 2019","1er janvier 2020",null,"Situation en 2015","1er janvier 2016","1er avril 2016","1er janvier 2017","1er janvier 2018","1er janvier 2019","1er janvier 2020",null,"Situation en 2015","1er janvier 2016","1er avril 2016","1er janvier 2017","1er janvier 2018","1er janvier 2019","1er janvier 2020",null,"Situation en 2015","1er janvier 2016","1er avril 2016","1er janvier 2017","1er janvier 2018","1er janvier 2019","1er janvier 2020",null,"Situation en 2015","1er janvier 2016","1er avril 2016","1er janvier 2017","1er janvier 2018","1er janvier 2019","1er janvier 2020",null,"Situation en 2015","1er janvier 2016","1er avril 2016","1er janvier 2017","1er janvier 2018","1er janvier 2019","1er janvier 2020"]
[]
["Salaire Mensuel",null,{"$f":"'In te geven informatie'!$C$18","v":2000},{"$f":"'In te geven informatie'!$C$18","v":2000},{"$f":"'In te geven informatie'!$C$18","v":2000},{"$f":"'In te geven informatie'!$C$18","v":2000},{"$f":"'In te geven informatie'!$C$18","v":2000},{"$f":"'In te geven informatie'!$C$18","v":2000},{"$f":"'In te geven informatie'!$C$18","v":2000},null,{"$f":"'In te geven informatie'!$C$18","v":2000},{"$f":"'In te geven informatie'!$C$18","v":2000},{"$f":"'In te geven informatie'!$C$18","v":2000},{"$f":"'In te geven informatie'!$C$18","v":2000},{"$f":"'In te geven informatie'!$C$18","v":2000},{"$f":"'In te geven informatie'!$C$18","v":2000},{"$f":"'In te geven informatie'!$C$18","v":2000},null,{"$f":"'In te geven informatie'!$C$18","v":2000},{"$f":"'In te geven informatie'!$C$18","v":2000},{"$f":"'In te geven informatie'!$C$18","v":2000},{"$f":"'In te geven informatie'!$C$18","v":2000},{"$f":"'In te geven informatie'!$C$18","v":2000},{"$f":"'In te geven informatie'!$C$18","v":2000},{"$f":"'In te geven informatie'!$C$18","v":2000},null,{"$f":"'In te geven informatie'!$C$18","v":2000},{"$f":"'In te geven informatie'!$C$18","v":2000},{"$f":"'In te geven informatie'!$C$18","v":2000},{"$f":"'In te geven informatie'!$C$18","v":2000},{"$f":"'In te geven informatie'!$C$18","v":2000},{"$f":"'In te geven informatie'!$C$18","v":2000},{"$f":"'In te geven informatie'!$C$18","v":2000},null,{"$f":"'In te geven informatie'!$C$18","v":2000},{"$f":"'In te geven informatie'!$C$18","v":2000},{"$f":"'In te geven informatie'!$C$18","v":2000},{"$f":"'In te geven informatie'!$C$18","v":2000},{"$f":"'In te geven informatie'!$C$18","v":2000},{"$f":"'In te geven informatie'!$C$18","v":2000},{"$f":"'In te geven informatie'!$C$18","v":2000},null,{"$f":"'In te geven informatie'!$C$18","v":2000},{"$f":"'In te geven informatie'!$C$18","v":2000},{"$f":"'In te geven informatie'!$C$18","v":2000},{"$f":"'In te geven informatie'!$C$18","v":2000},{"$f":"'In te geven informatie'!$C$18","v":2000},{"$f":"'In te geven informatie'!$C$18","v":2000},{"$f":"'In te geven informatie'!$C$18","v":2000}]
["Salaire Trimestriel",null,{"$f":"C11*3","v":6000},{"$f":"D11*3","v":6000},6000,6000,6000,6000,6000,null,{"$f":"K11*3","v":6000},{"$f":"L11*3","v":6000},6000,6000,6000,6000,6000,null,6000,6000,6000,6000,6000,6000,6000,null,6000,6000,6000,6000,6000,6000,6000,null,{"$f":"AI11*3","v":6000},6000,6000,6000,6000,6000,6000,null,6000,6000,6000,6000,6000,6000,6000]
["Cotisation patronale de base",null,{"$f":"C12*32.4/100","v":1944},{"$f":"C13","v":1944},{"$f":"E12*30/100","v":1800},{"$f":"F12*30/100","v":1800},{"$f":"G12*25/100","v":1500},{"$f":"H12*25/100","v":1500},{"$f":"H13","v":1500},null,{"$f":"K12*32.4/100","v":1944},{"$f":"K13","v":1944},{"$f":"M12*30/100","v":1800},{"$f":"N12*30/100","v":1800},{"$f":"O12*25/100","v":1500},{"$f":"P12*25/100","v":1500},{"$f":"P13","v":1500},null,{"$f":"S12*32.4/100","v":1944},1944,1944,1944,1944,1944,1944,null,{"$f":"AA12*32.4/100","v":1944},1944,1944,1944,1944,1944,1944,null,{"$f":"AI12*32.4/100","v":1944},{"$f":"AI13","v":1944},{"$f":"AK12*30/100","v":1800},{"$f":"AL12*30/100","v":1800},{"$f":"AM12*25/100","v":1500},{"$f":"AN12*25/100","v":1500},{"$f":"AN13","v":1500},null,{"$f":"AQ12*24.92/100","v":1495.2},{"$f":"AR12*24.92/100","v":1495.2},{"$f":"AS12*22.65/100","v":1359},{"$f":"AT12*22.65/100","v":1359},{"$f":"AU12*19.88/100","v":1192.8},{"$f":"AV12*19.88/100","v":1192.8},{"$f":"AW12*19.88/100","v":1192.8}]
["Cotisation patronale brute disponible ",null,{"$f":"IF('Feuille de calculs'!$D$3>=50,MAX((C13-395.45),0),MAX(C13,0))","v":1548.55},{"$f":"IF('Feuille de calculs'!$D$3>=50,MAX((D13-409.37),0),MAX(D13,0))","v":1534.63},{"$f":"IF('Feuille de calculs'!$D$3>=50,MAX((E13-409.37),0),MAX(E13,0))","v":1390.63},{"$f":"IF('Feuille de calculs'!$D$3>=50,MAX((F13-409.37),0),MAX(F13,0))","v":1390.63},{"$f":"IF('Feuille de calculs'!$D$3>=50,MAX((G13-409.37),0),MAX(G13,0))","v":1090.6300000000001},{"$f":"IF('Feuille de calculs'!$D$3>=50,MAX((H13-409.37),0),MAX(H13,0))","v":1090.6300000000001},{"$f":"IF('Feuille de calculs'!$D$3>=50,MAX((I13-409.37),0),MAX(I13,0))","v":1090.6300000000001},null,{"$f":"K13","v":1944},{"$f":"L13","v":1944},1800,1800,1500,1500,1500,null,{"$f":"IF('Feuille de calculs'!$D$3>=50,MAX((S13-395.45),0),MAX(S13,0))","v":1548.55},{"$f":"IF('Feuille de calculs'!$D$3>=50,MAX((T13-409.37),0),MAX(T13,0))","v":1534.63},{"$f":"IF('Feuille de calculs'!$D$3>=50,MAX((U13-443.86),0),MAX(U13,0))","v":1500.1399999999999},{"$f":"IF('Feuille de calculs'!$D$3>=50,MAX((V13-443.86),0),MAX(V13,0))","v":1500.1399999999999},{"$f":"IF('Feuille de calculs'!$D$3>=50,MAX((W13-465.29),0),MAX(W13,0))","v":1478.71},{"$f":"IF('Feuille de calculs'!$D$3>=50,MAX((X13-482.67),0),MAX(X13,0))","v":1461.33},{"$f":"IF('Feuille de calculs'!$D$3>=50,MAX((Y13-504.1),0),MAX(Y13,0))","v":1439.9},null,{"$f":"IF('Feuille de calculs'!$D$3>=50,MAX((AA13-395.45-3.38),0),MAX(AA13,0))","v":1545.1699999999998},{"$f":"IF('Feuille de calculs'!$D$3>=50,MAX((AB13-409.37-3.38),0),MAX(AB13,0))","v":1531.25},{"$f":"IF('Feuille de calculs'!$D$3>=50,MAX((AC13-443.86-3.38),0),MAX(AC13,0))","v":1496.7599999999998},{"$f":"IF('Feuille de calculs'!$D$3>=50,MAX((AD13-443.86-3.38),0),MAX(AD13,0))","v":1496.7599999999998},{"$f":"IF('Feuille de calculs'!$D$3>=50,MAX((AE13-465.29-3.38),0),MAX(AE13,0))","v":1475.33},{"$f":"IF('Feuille de calculs'!$D$3>=50,MAX((AF13-482.67-3.38),0),MAX(AF13,0))","v":1457.9499999999998},{"$f":"IF('Feuille de calculs'!$D$3>=50,MAX((AG13-504.1-3.38),0),MAX(AG13,0))","v":1436.52},null,{"$f":"AI13","v":1944},{"$f":"AJ13","v":1944},1800,1800,1500,1500,1500,null,{"$f":"AQ13","v":1495.2},1495.2,1359,1359,1192.8,1192.8,1192.8]
["Réduction structurelle brute",null,{"$f":"IF('Feuille de calculs'!$D$4<=5560.49,462.6+(0.162*(5560.49-'Feuille de calculs'!D4)),IF(C12>=13401.07,462.6+(0.06*(C12-13401.07)),462.6))","v":462.6},{"$f":"IF('Feuille de calculs'!$D$4<=5560.49,462.6+(0.162*(5560.49-'Feuille de calculs'!$D$4)),IF(D12>=13401.07,462.6+(0.06*(D12-13401.07)),462.6))","v":462.6},{"$f":"IF('Feuille de calculs'!$D$4<=6900,438+(0.1369*(6900-'Feuille de calculs'!$D$4)),IF(E12>=13401.07,438+(0.06*(E12-13401.07)),438))","v":561.21},{"$f":"IF('Feuille de calculs'!$D$4<=6900,438+(0.1369*(6900-'Feuille de calculs'!$D$4)),IF(F12>=13401.07,438+(0.06*(F12-13401.07)),438))","v":561.21},{"$f":"IF('Feuille de calculs'!$D$4<=8850,0+(0.128*(8850-'Feuille de calculs'!$D$4)),0)","v":364.8},{"$f":"IF('Feuille de calculs'!$D$4<=9035,0+(0.14*(9035-'Feuille de calculs'!$D$4)),0)","v":424.90000000000003},{"$f":"IF('Feuille de calculs'!$D$4<=9035,0+(0.14*(9035-'Feuille de calculs'!$D$4)),0)","v":424.90000000000003},null,{"$f":"IF('Feuille de calculs'!$D$4<=5560.49,462.6+(0.162*(5560.49-'Feuille de calculs'!$D$4)),IF(K12>=13401.07,462.6+(0.06*(K12-13401.07)),462.6))","v":462.6},{"$f":"IF('Feuille de calculs'!$D$4<=5560.49,462.6+(0.162*(5560.49-'Feuille de calculs'!$D$4)),IF(L12>=13401.07,462.6+(0.06*(L12-13401.07)),462.6))","v":462.6},{"$f":"IF('Feuille de calculs'!$D$4<=6900,438+(0.1369*(6900-'Feuille de calculs'!$D$4)),IF(M12>=13401.07,438+(0.06*(M12-13401.07)),438))","v":561.21},{"$f":"IF('Feuille de calculs'!$D$4<=6900,438+(0.1369*(6900-'Feuille de calculs'!$D$4)),IF(N12>=13401.07,438+(0.06*(N12-13401.07)),438))","v":561.21},{"$f":"IF('Feuille de calculs'!$D$4<=8850,0+(0.128*(8850-'Feuille de calculs'!$D$4)),0)","v":364.8},{"$f":"IF('Feuille de calculs'!$D$4<=9035,0+(0.14*(9035-'Feuille de calculs'!$D$4)),0)","v":424.90000000000003},{"$f":"IF('Feuille de calculs'!$D$4<=9035,0+(0.14*(9035-'Feuille de calculs'!$D$4)),0)","v":424.90000000000003},null,{"$f":"IF('Feuille de calculs'!$D$4<=6150,0+(0.2557*(6150-'Feuille de calculs'!$D$4)),IF(S12>=12484.8,0+(0.06*(S12-12484.8)),0))","v":38.354999999999997},{"$f":"IF('Feuille de calculs'!$D$4<=6150,0+(0.2557*(6150-'Feuille de calculs'!$D$4)),IF(T12>=12484.8,0+(0.06*(T12-12484.8)),0))","v":38.354999999999997},{"$f":"IF('Feuille de calculs'!$D$4<=7110,24+(0.2557*(7110-'Feuille de calculs'!$D$4)),IF(U12>=12484.8,24+(0.06*(U12-12484.8)),24))","v":307.827},{"$f":"IF('Feuille de calculs'!$D$4<=7110,24+(0.2557*(7110-'Feuille de calculs'!$D$4)),IF(V12>=12484.8,24+(0.06*(V12-12484.8)),24))","v":307.827},{"$f":"IF('Feuille de calculs'!$D$4<=7218,49+(0.2557*(7218-'Feuille de calculs'!$D$4)),IF(W12>=12484.8,49+(0.06*(W12-12484.8)),49))","v":360.44259999999997},{"$f":"IF('Feuille de calculs'!$D$4<=7590,49+(0.2557*(7590-'Feuille de calculs'!$D$4)),IF(X12>=12484.8,49+(0.06*(X12-12484.8)),49))","v":455.56299999999999},{"$f":"IF('Feuille de calculs'!$D$4<=7590,79+(0.2557*(7590-'Feuille de calculs'!$D$4)),IF(Y12>=12484.8,79+(0.06*(Y12-12484.8)),79))","v":485.56299999999999},null,{"$f":"IF('Feuille de calculs'!$D$4<=6150,0+(0.2557*(6150-'Feuille de calculs'!$D$4)),IF(AA12>=12484.8,0+(0.06*(AA12-12484.8)),0))","v":38.354999999999997},{"$f":"IF('Feuille de calculs'!$D$4<=6150,0+(0.2557*(6150-'Feuille de calculs'!$D$4)),IF(AB12>=12484.8,0+(0.06*(AB12-12484.8)),0))","v":38.354999999999997},{"$f":"IF('Feuille de calculs'!$D$4<=7110,24+(0.2557*(7110-'Feuille de calculs'!$D$4)),IF(AC12>=12484.8,24+(0.06*(AC12-12484.8)),24))","v":307.827},{"$f":"IF('Feuille de calculs'!$D$4<=7110,24+(0.2557*(7110-'Feuille de calculs'!$D$4)),IF(AD12>=12484.8,24+(0.06*(AD12-12484.8)),24))","v":307.827},{"$f":"IF('Feuille de calculs'!$D$4<=7218,49+(0.2557*(7218-'Feuille de calculs'!$D$4)),IF(AE12>=12484.8,49+(0.06*(AE12-12484.8)),49))","v":360.44259999999997},{"$f":"IF('Feuille de calculs'!$D$4<=7590,49+(0.2557*(7590-'Feuille de calculs'!$D$4)),IF(AF12>=12484.8,49+(0.06*(AF12-12484.8)),49))","v":455.56299999999999},{"$f":"IF('Feuille de calculs'!$D$4<=7590,79+(0.2557*(7590-'Feuille de calculs'!$D$4)),IF(AG12>=12484.8,79+(0.06*(AG12-12484.8)),79))","v":485.56299999999999},null,{"$f":"IF('Feuille de calculs'!$D$4<=7225,471+(0.1785*(7225-'Feuille de calculs'!$D$4)),IF(AI12>=12484.8,471+(0.06*(AI12-12484.8)),471))","v":689.66250000000002},{"$f":"IF('Feuille de calculs'!$D$4<=7225,471+(0.1785*(7225-'Feuille de calculs'!$D$4)),IF(AJ12>=12484.8,471+(0.06*(AJ12-12484.8)),471))","v":689.66250000000002},{"$f":"IF('Feuille de calculs'!$D$4<=7500,438+(0.1369*(7500-'Feuille de calculs'!$D$4)),IF(AK12>=12484.8,438+(0.06*(AK12-12484.8)),438))","v":643.35},{"$f":"IF('Feuille de calculs'!$D$4<=7500,438+(0.1369*(7500-'Feuille de calculs'!$D$4)),IF(AL12>=12484.8,438+(0.06*(AL12-12484.8)),438))","v":643.35},{"$f":"IF('Feuille de calculs'!$D$4<=9450,0+(0.128*(9450-'Feuille de calculs'!$D$4)),0)","v":441.6},{"$f":"IF('Feuille de calculs'!$D$4<=9635,0+(0.14*(9635-'Feuille de calculs'!$D$4)),0)","v":508.90000000000003},{"$f":"IF('Feuille de calculs'!$D$4<=9635,0+(0.14*(9635-'Feuille de calculs'!$D$4)),0)","v":508.90000000000003},null,{"$f":"IF('Feuille de calculs'!$D$4<=7225,471+(0.1785*(7225-'Feuille de calculs'!$D$4)),IF(AQ12>=12484.8,471+(0.06*(AQ12-12484.8)),471))","v":689.66250000000002},{"$f":"IF('Feuille de calculs'!$D$4<=7225,471+(0.1785*(7225-'Feuille de calculs'!$D$4)),IF(AR12>=12484.8,471+(0.06*(AR12-12484.8)),471))","v":689.66250000000002},{"$f":"IF('Feuille de calculs'!$D$4<=8185,420+(0.1785*(8185-'Feuille de calculs'!$D$4)),IF(AS12>=12484.8,420+(0.06*(AS12-12484.8)),420))","v":810.02250000000004},{"$f":"IF('Feuille de calculs'!$D$4<=8185,420+(0.1785*(8185-'Feuille de calculs'!$D$4)),IF(AT12>=12484.8,420+(0.06*(AT12-12484.8)),420))","v":810.02250000000004},{"$f":"IF('Feuille de calculs'!$D$4<=8850,260+(0.1785*(8850-'Feuille de calculs'!$D$4)),260)","v":768.72499999999991},{"$f":"IF('Feuille de calculs'!$D$4<=9035,375+(0.1785*(9035-'Feuille de calculs'!$D$4)),375)","v":916.74749999999995},{"$f":"IF('Feuille de calculs'!$D$4<=9035,375+(0.1785*(9035-'Feuille de calculs'!$D$4)),375)","v":916.74749999999995}]
["Inclusion fraction de prestation",null,{"$f":"C15*'Feuille de calculs'!$D$2*'In te geven informatie'!$C$17","v":462.6},{"$f":"D15*'Feuille de calculs'!$D$2*'In te geven informatie'!$C$17","v":462.6},{"$f":"E15*'Feuille de calculs'!$D$2*'In te geven informatie'!$C$17","v":561.21},{"$f":"F15*'Feuille de calculs'!$D$2*'In te geven informatie'!$C$17","v":561.21},{"$f":"G15*'Feuille de calculs'!$D$2*'In te geven informatie'!$C$17","v":364.8},{"$f":"H15*'Feuille de calculs'!$D$2*'In te geven informatie'!$C$17","v":424.90000000000003},{"$f":"I15*'Feuille de calculs'!$D$2*'In te geven informatie'!$C$17","v":424.90000000000003},null,{"$f":"K15*'Feuille de calculs'!$D$2*'In te geven informatie'!$C$17","v":462.6},{"$f":"L15*'Feuille de calculs'!$D$2*'In te geven informatie'!$C$17","v":462.6},{"$f":"M15*'Feuille de calculs'!$D$2*'In te geven informatie'!$C$17","v":561.21},{"$f":"N15*'Feuille de calculs'!$D$2*'In te geven informatie'!$C$17","v":561.21},{"$f":"O15*'Feuille de calculs'!$D$2*'In te geven informatie'!$C$17","v":364.8},{"$f":"P15*'Feuille de calculs'!$D$2*'In te geven informatie'!$C$17","v":424.90000000000003},{"$f":"Q15*'Feuille de calculs'!$D$2*'In te geven informatie'!$C$17","v":424.90000000000003},null,{"$f":"S15*'Feuille de calculs'!$D$2*'In te geven informatie'!$C$17","v":38.354999999999997},{"$f":"T15*'Feuille de calculs'!$D$2*'In te geven informatie'!$C$17","v":38.354999999999997},{"$f":"U15*'Feuille de calculs'!$D$2*'In te geven informatie'!$C$17","v":307.827},{"$f":"V15*'Feuille de calculs'!$D$2*'In te geven informatie'!$C$17","v":307.827},{"$f":"W15*'Feuille de calculs'!$D$2*'In te geven informatie'!$C$17","v":360.44259999999997},{"$f":"X15*'Feuille de calculs'!$D$2*'In te geven informatie'!$C$17","v":455.56299999999999},{"$f":"Y15*'Feuille de calculs'!$D$2*'In te geven informatie'!$C$17","v":485.56299999999999},null,{"$f":"AA15*'Feuille de calculs'!$D$2*'In te geven informatie'!$C$17","v":38.354999999999997},{"$f":"AB15*'Feuille de calculs'!$D$2*'In te geven informatie'!$C$17","v":38.354999999999997},{"$f":"AC15*'Feuille de calculs'!$D$2*'In te geven informatie'!$C$17","v":307.827},{"$f":"AD15*'Feuille de calculs'!$D$2*'In te geven informatie'!$C$17","v":307.827},{"$f":"AE15*'Feuille de calculs'!$D$2*'In te geven informatie'!$C$17","v":360.44259999999997},{"$f":"AF15*'Feuille de calculs'!$D$2*'In te geven informatie'!$C$17","v":455.56299999999999},{"$f":"AG15*'Feuille de calculs'!$D$2*'In te geven informatie'!$C$17","v":485.56299999999999},null,{"$f":"AI15*'Feuille de calculs'!$H$2*'In te geven informatie'!$C$17","v":689.66250000000002},{"$f":"AJ15*'Feuille de calculs'!$H$2*'In te geven informatie'!$C$17","v":689.66250000000002},{"$f":"AK15*'Feuille de calculs'!$H$2*'In te geven informatie'!$C$17","v":643.35},{"$f":"AL15*'Feuille de calculs'!$H$2*'In te geven informatie'!$C$17","v":643.35},{"$f":"AM15*'Feuille de calculs'!$H$2*'In te geven informatie'!$C$17","v":441.6},{"$f":"AN15*'Feuille de calculs'!$H$2*'In te geven informatie'!$C$17","v":508.90000000000003},{"$f":"AO15*'Feuille de calculs'!$H$2*'In te geven informatie'!$C$17","v":508.90000000000003},null,{"$f":"AQ15*'Feuille de calculs'!$H$2*'In te geven informatie'!$C$17","v":689.66250000000002},{"$f":"AR15*'Feuille de calculs'!$H$2*'In te geven informatie'!$C$17","v":689.66250000000002},{"$f":"AS15*'Feuille de calculs'!$H$2*'In te geven informatie'!$C$17","v":810.02250000000004},{"$f":"AT15*'Feuille de calculs'!$H$2*'In te geven informatie'!$C$17","v":810.02250000000004},{"$f":"AU15*'Feuille de calculs'!$H$2*'In te geven informatie'!$C$17","v":768.72499999999991},{"$f":"AV15*'Feuille de calculs'!$H$2*'In te geven informatie'!$C$17","v":916.74749999999995},{"$f":"AW15*'Feuille de calculs'!$H$2*'In te geven informatie'!$C$17","v":916.74749999999995}]
["Réduction structurelle nette",null,{"$f":"MIN(C16,C14)","v":462.6},{"$f":"MIN(D16,D14)","v":462.6},561.21,561.21,364.8,424.90000000000003,424.90000000000003,null,{"$f":"MIN(K16,K14)","v":462.6},{"$f":"MIN(L16,L14)","v":462.6},561.21,561.21,364.8,424.90000000000003,424.90000000000003,null,{"$f":"MIN(S16,S14)","v":38.354999999999997},38.354999999999997,307.827,307.827,360.44259999999997,455.56299999999999,485.56299999999999,null,{"$f":"MIN(AA16,AA14)","v":38.354999999999997},38.354999999999997,307.827,307.827,360.44259999999997,455.56299999999999,485.56299999999999,null,{"$f":"AI16","v":689.66250000000002},{"$f":"AJ16","v":689.66250000000002},643.35,643.35,441.6,508.90000000000003,508.90000000000003,null,{"$f":"AQ16","v":689.66250000000002},{"$f":"AR16","v":689.66250000000002},810.02250000000004,810.02250000000004,768.72499999999991,916.74749999999995,916.74749999999995]
["Cotisations nettes à payer",null,{"$f":"C13-C17","v":1481.4},1481.4,1238.79,1238.79,1135.2,1075.0999999999999,1075.0999999999999,null,{"$f":"K13-K17","v":1481.4},1481.4,1238.79,1238.79,1135.2,1075.0999999999999,1075.0999999999999,null,{"$f":"S13-S17","v":1905.645},{"$f":"T13-T17","v":1905.645},1636.173,1636.173,1583.5574000000001,1488.4369999999999,1458.4369999999999,null,1905.645,{"$f":"AB13-AB17","v":1905.645},1636.173,1636.173,1583.5574000000001,1488.4369999999999,1458.4369999999999,null,{"$f":"MAX((AI13-AI16),0)","v":1254.3375000000001},{"$f":"MAX((AJ13-AJ16),0)","v":1254.3375000000001},1156.6500000000001,1156.6500000000001,1058.4000000000001,991.09999999999991,991.09999999999991,null,{"$f":"MAX((AQ13-AQ16),0)","v":805.53750000000002},{"$f":"MAX((AR13-AR16),0)","v":805.53750000000002},548.97749999999996,548.97749999999996,424.07500000000005,276.05250000000001,276.05250000000001]
["Taux de cotisations net",null,{"$f":"C18/C12","v":0.24690000000000001},{"$f":"D18/D12","v":0.24690000000000001},0.20646499999999998,0.20646499999999998,0.18920000000000001,0.17918333333333331,0.17918333333333331,null,{"$f":"K18/K12","v":0.24690000000000001},{"$f":"L18/L12","v":0.24690000000000001},0.20646499999999998,0.20646499999999998,0.18920000000000001,0.17918333333333331,0.17918333333333331,null,{"$f":"S18/S12","v":0.31760749999999999},0.31760749999999999,0.27269549999999998,0.27269549999999998,0.26392623333333337,0.24807283333333333,0.24307283333333332,null,{"$f":"AA18/AA12","v":0.31760749999999999},0.31760749999999999,0.27269549999999998,0.27269549999999998,0.26392623333333337,0.24807283333333333,0.24307283333333332,null,{"$f":"AI18/AI12","v":0.20905625000000003},{"$f":"AJ18/AJ12","v":0.20905625000000003},0.192775,0.192775,0.17640000000000003,0.16518333333333332,0.16518333333333332,null,{"$f":"AQ18/AQ12","v":0.13425624999999999},0.13425624999999999,9.1496249999999987E-2,9.1496249999999987E-2,7.0679166666666668E-2,4.6008750000000001E-2,4.6008750000000001E-2]

{"sheet":"Resultatenfiche","index":3,"n_rows":23,"n_cols":10,"rows_kept":23,"cut":false,"hidden":false,"merged":[[18,2,18,8],[20,2,20,8],[14,1,14,2],[1,2,1,12],[3,5,3,8],[8,3,9,9],[11,1,11,2],[12,1,12,2],[13,1,13,2]]}
[]
[null,null,"Evolutie van 2015 tot en met 2020"]
[]
[null,null,null,"Selecteer uw categorie:",null,"Categorie 1 (met sociale Maribel)"]
[]
[]
[]
[]
[null,null,null,{"$f":"F4","v":"Categorie 1 (met sociale Maribel)"}]
[]
[null,null,null,"Situatie in 2015","1 januari 2016","1 april 2016","1 januari 2017","1 januari 2018","1 januari 2019","1 januari 2020"]
[null,"Netto te betalen werkgeversbijdrage* per trimester  (in €)",null,{"$f":"IF($D$9=\"Categorie 1 (met sociale Maribel)\",'Feuille de calculs'!C18,IF($D$9=\"Categorie 1 (zonder sociale Maribel)\",'Feuille de calculs'!K18,IF($D$9=\"Categorie 2 (gewone forfait sociale Maribel)\",'Feuille de calculs'!S18,IF($D$9=\"Categorie 2 (forfait sociale Maribel PC 330 (behalve PC 330.03))\",'Feuille de calculs'!AA18,IF(Resultatenfiche!$D$9=\"Categorie 3 (valide werknemers)\",'Feuille de calculs'!AI18,'Feuille de calculs'!AQ18)))))","v":1481.4},{"$f":"IF($D$9=\"Categorie 1 (met sociale Maribel)\",'Feuille de calculs'!D18,IF($D$9=\"Categorie 1 (zonder sociale Maribel)\",'Feuille de calculs'!L18,IF($D$9=\"Categorie 2 (gewone forfait sociale Maribel)\",'Feuille de calculs'!T18,IF($D$9=\"Categorie 2 (forfait sociale Maribel PC 330 (behalve PC 330.03))\",'Feuille de calculs'!AB18,IF(Resultatenfiche!$D$9=\"Categorie 3 (valide werknemers)\",'Feuille de calculs'!AJ18,'Feuille de calculs'!AR18)))))","v":1481.4},{"$f":"IF($D$9=\"Categorie 1 (met sociale Maribel)\",'Feuille de calculs'!E18,IF($D$9=\"Categorie 1 (zonder sociale Maribel)\",'Feuille de calculs'!M18,IF($D$9=\"Categorie 2 (gewone forfait sociale Maribel)\",'Feuille de calculs'!U18,IF($D$9=\"Categorie 2 (forfait sociale Maribel PC 330 (behalve PC 330.03))\",'Feuille de calculs'!AC18,IF(Resultatenfiche!$D$9=\"Categorie 3 (valide werknemers)\",'Feuille de calculs'!AK18,'Feuille de calculs'!AS18)))))","v":1238.79},{"$f":"IF($D$9=\"Categorie 1 (met sociale Maribel)\",'Feuille de calculs'!F18,IF($D$9=\"Categorie 1 (zonder sociale Maribel)\",'Feuille de calculs'!N18,IF($D$9=\"Categorie 2 (gewone forfait sociale Maribel)\",'Feuille de calculs'!V18,IF($D$9=\"Categorie 2 (forfait sociale Maribel PC 330 (behalve PC 330.03))\",'Feuille de calculs'!AD18,IF(Resultatenfiche!$D$9=\"Categorie 3 (valide werknemers)\",'Feuille de calculs'!AL18,'Feuille de calculs'!AT18)))))","v":1238.79},{"$f":"IF($D$9=\"Categorie 1 (met sociale Maribel)\",'Feuille de calculs'!G18,IF($D$9=\"Categorie 1 (zonder sociale Maribel)\",'Feuille de calculs'!O18,IF($D$9=\"Categorie 2 (gewone forfait sociale Maribel)\",'Feuille de calculs'!W18,IF($D$9=\"Categorie 2 (forfait sociale Maribel PC 330 (behalve PC 330.03))\",'Feuille de calculs'!AE18,IF(Resultatenfiche!$D$9=\"Categorie 3 (valide werknemers)\",'Feuille de calculs'!AM18,'Feuille de calculs'!AU18)))))","v":1135.2},{"$f":"IF($D$9=\"Categorie 1 (met sociale Maribel)\",'Feuille de calculs'!H18,IF($D$9=\"Categorie 1 (zonder sociale Maribel)\",'Feuille de calculs'!P18,IF($D$9=\"Categorie 2 (gewone forfait sociale Maribel)\",'Feuille de calculs'!X18,IF($D$9=\"Categorie 2 (forfait sociale Maribel PC 330 (behalve PC 330.03))\",'Feuille de calculs'!AF18,IF(Resultatenfiche!$D$9=\"Categorie 3 (valide werknemers)\",'Feuille de calculs'!AN18,'Feuille de calculs'!AV18)))))","v":1075.0999999999999},{"$f":"IF($D$9=\"Categorie 1 (met sociale Maribel)\",'Feuille de calculs'!I18,IF($D$9=\"Categorie 1 (zonder sociale Maribel)\",'Feuille de calculs'!Q18,IF($D$9=\"Categorie 2 (gewone forfait sociale Maribel)\",'Feuille de calculs'!Y18,IF($D$9=\"Categorie 2 (forfait sociale Maribel PC 330 (behalve PC 330.03))\",'Feuille de calculs'!AG18,IF(Resultatenfiche!$D$9=\"Categorie 3 (valide werknemers)\",'Feuille de calculs'!AO18,'Feuille de calculs'!AW18)))))","v":1075.0999999999999}]
[null,"Netto te betalen werkgeversbijdrage* per trimester (en %)",null,{"$f":"IF($D$9=\"Categorie 1 (met sociale Maribel)\",'Feuille de calculs'!C19,IF($D$9=\"Categorie 1 (zonder sociale Maribel)\",'Feuille de calculs'!K19,IF($D$9=\"Categorie 2 (gewone forfait sociale Maribel)\",'Feuille de calculs'!S19,IF($D$9=\"Categorie 2 (forfait sociale Maribel PC 330 (behalve PC 330.03))\",'Feuille de calculs'!AA19,IF(Resultatenfiche!$D$9=\"Categorie 3 (valide werknemers)\",'Feuille de calculs'!AI19,'Feuille de calculs'!AQ19)))))","v":0.24690000000000001},{"$f":"IF($D$9=\"Categorie 1 (met sociale Maribel)\",'Feuille de calculs'!D19,IF($D$9=\"Categorie 1 (zonder sociale Maribel)\",'Feuille de calculs'!L19,IF($D$9=\"Categorie 2 (gewone forfait sociale Maribel)\",'Feuille de calculs'!T19,IF($D$9=\"Categorie 2 (forfait sociale Maribel PC 330 (behalve PC 330.03))\",'Feuille de calculs'!AB19,IF(Resultatenfiche!$D$9=\"Categorie 3 (valide werknemers)\",'Feuille de calculs'!AJ19,'Feuille de calculs'!AR19)))))","v":0.24690000000000001},{"$f":"IF($D$9=\"Categorie 1 (met sociale Maribel)\",'Feuille de calculs'!E19,IF($D$9=\"Categorie 1 (zonder sociale Maribel)\",'Feuille de calculs'!M19,IF($D$9=\"Categorie 2 (gewone forfait sociale Maribel)\",'Feuille de calculs'!U19,IF($D$9=\"Categorie 2 (forfait sociale Maribel PC 330 (behalve PC 330.03))\",'Feuille de calculs'!AC19,IF(Resultatenfiche!$D$9=\"Categorie 3 (valide werknemers)\",'Feuille de calculs'!AK19,'Feuille de calculs'!AS19)))))","v":0.20646499999999998},{"$f":"IF($D$9=\"Categorie 1 (met sociale Maribel)\",'Feuille de calculs'!F19,IF($D$9=\"Categorie 1 (zonder sociale Maribel)\",'Feuille de calculs'!N19,IF($D$9=\"Categorie 2 (gewone forfait sociale Maribel)\",'Feuille de calculs'!V19,IF($D$9=\"Categorie 2 (forfait sociale Maribel PC 330 (behalve PC 330.03))\",'Feuille de calculs'!AD19,IF(Resultatenfiche!$D$9=\"Categorie 3 (valide werknemers)\",'Feuille de calculs'!AL19,'Feuille de calculs'!AT19)))))","v":0.20646499999999998},{"$f":"IF($D$9=\"Categorie 1 (met sociale Maribel)\",'Feuille de calculs'!G19,IF($D$9=\"Categorie 1 (zonder sociale Maribel)\",'Feuille de calculs'!O19,IF($D$9=\"Categorie 2 (gewone forfait sociale Maribel)\",'Feuille de calculs'!W19,IF($D$9=\"Categorie 2 (forfait sociale Maribel PC 330 (behalve PC 330.03))\",'Feuille de calculs'!AE19,IF(Resultatenfiche!$D$9=\"Categorie 3 (valide werknemers)\",'Feuille de calculs'!AM19,'Feuille de calculs'!AU19)))))","v":0.18920000000000001},{"$f":"IF($D$9=\"Categorie 1 (met sociale Maribel)\",'Feuille de calculs'!H19,IF($D$9=\"Categorie 1 (zonder sociale Maribel)\",'Feuille de calculs'!P19,IF($D$9=\"Categorie 2 (gewone forfait sociale Maribel)\",'Feuille de calculs'!X19,IF($D$9=\"Categorie 2 (forfait sociale Maribel PC 330 (behalve PC 330.03))\",'Feuille de calculs'!AF19,IF(Resultatenfiche!$D$9=\"Categorie 3 (valide werknemers)\",'Feuille de calculs'!AN19,'Feuille de calculs'!AV19)))))","v":0.17918333333333331},{"$f":"IF($D$9=\"Categorie 1 (met sociale Maribel)\",'Feuille de calculs'!I19,IF($D$9=\"Categorie 1 (zonder sociale Maribel)\",'Feuille de calculs'!Q19,IF($D$9=\"Categorie 2 (gewone forfait sociale Maribel)\",'Feuille de calculs'!Y19,IF($D$9=\"Categorie 2 (forfait sociale Maribel PC 330 (behalve PC 330.03))\",'Feuille de calculs'!AG19,IF(Resultatenfiche!$D$9=\"Categorie 3 (valide werknemers)\",'Feuille de calculs'!AO19,'Feuille de calculs'!AW19)))))","v":0.17918333333333331}]
[null,"Verschil in € in vergelijking met de situatie in 2015",null,null,{"$f":"E12-$D$12","v":0},{"$f":"F12-$D$12","v":-242.61000000000013},-242.61000000000013,-346.20000000000005,-406.30000000000018,{"$f":"J12-$D$12","v":-406.30000000000018}]
[null,"Verschil in % in vergelijking met de situatie in 2015",null,null,{"$f":"(E12/$D$12)-1","v":0},-0.16377075739165659,-0.16377075739165659,-0.23369785338193605,-0.27426758471715951,-0.27426758471715951]
[null,null,"*  De werkgeversbijdragen in deze resultatenfiche baseren zich op de gegevens die ingevuld werden in het tabblad \"in te geven informatie\"."]
[]
[]
[null,null,"Opmerking: Ce simulator neemt in zijn rekenbladen de vaste multiplicatiefactor ß mee. De vaste multiplicatiefactor ß wordt automatisch berekend door de simulator uit de prestatiebreuk. De vaste multiplicatiefactor voert een minimale grens aan prestaties in opdat van de structurele lastenverlaging genoten kan worden (0,275), en laat toe om af te wijken van een louter proportionele lastenverlaging in geval van onvolledige prestaties."]
[]
[null,null,"Voor meer uitleg en voorbeelden, verwijzen we u naar het dossier van Unisoc over de RSZ-lastenverlagingen dat beschikbaar is op onze website."]
[]
[null,null,null,"Voor meer informatie:"]